Workbook

Sheet Market Size
B20: Land area of Europe [km²] | H20: 10523000
B22: Interferer density in Europe in the band 116-130GHz [devices/km²] | H22: 1250 | J22: worst case: 50% for handheld/mobile: value dense urban (5000) / 50 (aggregated EESS study) and both ranges will be used with the same densitiy
B23: Interferer density in Europe in the band 134-141GHz [devices/km²] | H23: 1250

Sheet EESS (inband)
A1: Compatibility analysis between generic handheld/mobile indoor surveillance radar and EESS (if TX signal within EESS frequency ranges)
C3: Band of EESS: 114,25-122,25 GHz
A4: Single-entry study | C4: MWI | D4: Planned EUMETSAT radiometer (ECC Report 190)
A5: Sensor type | C5: Conical scan | D5: Conical scan
A6: EESS: | B6: Units
A7: Assumed centre frequency of EESS | B7: GHz | C7: 119.125 | D7: 119.125
A8: Wavelength of EESS | B8: m | C8: =2.99792458/C7/10 -> 0.002516620844 | D8: 0.002516620844
A9: Reference bandwidth | B9: MHz | C9: 200 | D9: 200
A10: Orbit altitude | B10: km | C10: 830 | D10: 800
A11: Angle of incidence at Earth's surface (from zenith) | B11: deg | C11: 53.3 | D11: 53
A12: Elevation angle at ground | B12: deg | C12: =90-C11 -> 36.7 | D12: =90-D11 -> 37
A13: Off-nadir angle | B13: deg | C13: =(ASIN(SIN(C11*PI()/180)/(1+C10/6371)))*180/PI()+0.00000001 -> 45.18299423 | D13: =(ASIN(SIN(D11*PI()/180)/(1+D10/6371)))*180/PI()+0.00000001 -> 45.19744971
A14: Slant path distance | B14: km | C14: =6371*SIN((ASIN(((6371+C10)/6371)*SIN(C13*PI()/180))*180/PI()-C13)*PI()/180)/SIN(C13*PI()/180) -> 1268.117481 | D14: =6371*SIN((ASIN(((6371+D10)/6371)*SIN(D13*PI()/180))*180/PI()-D13)*PI()/180)/SIN(D13*PI()/180) -> 1218.99489
A15: EESS antenna gain | B15: dBi | C15: 55.5 | D15: 55
A16: Size of EESS FOV on Earth's surface | B16: km² | C16: 82 | D16: 82
A17: EESS interference criterion in the reference bandwidth (ITU-R RS.2017-0) | B17: dBW | C17: -166 | D17: -166
A18: Apportionment factor | B18: dB | C18: 15 | D18: 15
A20: Radiodetermination system (interferer):
A21: Conducted Tx power of interferer | B21: dBm | C21: 0 | D21: 0
A22: Out-of-band unwanted emissions attenuation (if EESS victim is located in an adjacent band) | B22: dB | C22: 0 | D22: 0
A23: Tx e.i.r.p. of interferer | B23: dBm | C23: =C21-C22+C28 -> 10 | D23: 10
A24: Bandwidth of interferer Tx signal | B24: GHz | C24: 1 | D24: 1
A25: Tx e.i.r.p. spectral density of interferer | B25: dBm/MHz | C25: =C23-10*LOG(C24*1000) -> -20 | D25: -20
A26: Tx e.i.r.p. spectral density of interferer | B26: dBW/MHz | C26: =C25-30 -> -50 | D26: -50
A27: Mitigation technique (e.g. duty cycle, adaptive power control) | B27: dB | C27: -7 | D27: -7
A28: Gain of the interferer antenna in direction of main radiation | B28: dBi | C28: 10 | D28: 10
A30: Free space loss between interferer and EESS | B30: dB | C30: =20*LOG10(4*PI()*C14*1000/C8) -> 196.0310313 | D30: =20*LOG10(4*PI()*D14*1000/D8) -> 195.6878792
A31: Direct e.i.r.p. spectral density at the EESS antenna | B31: dBW/MHz | C31: =C26-C30+C27 -> -253.0310313 | D31: -252.6878792
A32: Atmospheric loss (according to contribution SE24(20)063_rev1 and SE24(20)WI71#9-03) | B32: dB | C32: 3.2 | D32: 3.2
A33: Indoor-outdoor attenuation (according to clause 2.3 in the Report) | B33: dB | C33: 36.9 | D33: 36.9
A34: Power spectral density at the EESS receiver in a 1 MHz bandwidth | B34: dBW/MHz | C34: =C31+C15-C32-C33 -> -237.6310313 | D34: =D31+D15-D32-D33 -> -237.7878792
A35: Corresponding power at the EESS receiver in the reference bandwidth for a single interferer | B35: dBW | C35: =C34+10*LOG10(C9) -> -214.6207313 | D35: =D34+10*LOG10(D9) -> -214.7775792
A36: Number of interferers in EESS FOV on Earth's surface | C36: 1 | D36: 1
A37: Corresponding received power at the EESS in the reference bandwidth within the EESS's FOV | B37: dBW | C37: =C35+10*LOG10(C36) -> -214.6207313 | D37: =D35+10*LOG10(D36) -> -214.7775792
A38: Margin with reference to ITU-R RS.2017-0 | B38: dB | C38: =C17-C18-C37 -> 33.62073133 | D38: =D17-D18-D37 -> 33.77757924
C45: Band of EESS: 114,25-122,25 GHz
A46: Aggregated interference study | C46: MWI | D46: Planned EUMETSAT radiometer (ECC Report 190)
A47: Sensor type | C47: Conical scan | D47: Conical scan
A48: EESS: | B48: Units
A49: Assumed centre frequency of EESS | B49: GHz | C49: 119.125 | D49: 119.125
A50: Wavelength of EESS | B50: m | C50: =2.99792458/C49/10 -> 0.002516620844 | D50: 0.002516620844
A51: Reference bandwidth | B51: MHz | C51: 200 | D51: 200
A52: Orbit altitude | B52: km | C52: 830 | D52: 800
A53: Angle of incidence at Earth's surface (from zenith) | B53: deg | C53: 53.3 | D53: 53
A54: Elevation angle at ground | B54: deg | C54: =90-C53 -> 36.7 | D54: =90-D53 -> 37
A55: Off-nadir angle | B55: deg | C55: =(ASIN(SIN(C53*PI()/180)/(1+C52/6371)))*180/PI()+0.00000001 -> 45.18299423 | D55: =(ASIN(SIN(D53*PI()/180)/(1+D52/6371)))*180/PI()+0.00000001 -> 45.19744971
A56: Slant path distance | B56: km | C56: =6371*SIN((ASIN(((6371+C52)/6371)*SIN(C55*PI()/180))*180/PI()-C55)*PI()/180)/SIN(C55*PI()/180) -> 1268.117481 | D56: =6371*SIN((D53-D55)*PI()/180)/SIN(D55*PI()/180) -> 1218.994888
A57: EESS antenna gain | B57: dBi | C57: 55.5 | D57: 55
A58: Size of EESS FOV on Earth's surface | B58: km² | C58: 82 | D58: 82
A59: EESS interference criterion in the reference bandwidth (ITU-R RS.2017-0) | B59: dBW | C59: -166 | D59: -166
A60: Apportionment factor | B60: dB | C60: 15 | D60: 15
A62: Radiodetermination system (interferer):
A63: Conducted Tx power of interferer | B63: dBm | C63: 0 | D63: 0
A64: Out-of-band unwanted emissions attenuation (if EESS victim is located in an adjacent band) | B64: dB | C64: 0 | D64: 0
A65: Tx e.i.r.p. of interferer | B65: dBm | C65: =C63-C64+C70 -> 0 | D65: 0
A66: Bandwidth of interferer Tx signal | B66: GHz | C66: 1 | D66: 1
A67: Tx e.i.r.p. spectral density of interferer | B67: dBm/MHz | C67: =C65-10*LOG(C66*1000) -> -30 | D67: -30
A68: Tx e.i.r.p. spectral density of interferer | B68: dBW/MHz | C68: =C67-30 -> -60 | D68: -60
A69: Mitigation technique (e.g. duty cycle, adaptive power control) | B69: dB | C69: -7 | D69: -7
A70: Average gain of the interferer antenna in the direction of the victim EESS system | B70: dBi | C70: 0 | D70: 0
A72: Free space loss between interferer and EESS | B72: dB | C72: =20*LOG10(4*PI()*C56*1000/C50) -> 196.0310313 | D72: =20*LOG10(4*PI()*D56*1000/D50) -> 195.6878792
A73: Direct e.i.r.p. spectral density at the EESS antenna | B73: dBW/MHz | C73: =C68-C72+C69 -> -263.0310313 | D73: -262.6878792
A74: Atmospheric loss (according to contribution SE24(20)063_rev1 and SE24(20)WI71#9-03) | B74: dB | C74: 3.2 | D74: 3.2
A75: Indoor-outdoor attenuation (according to clause 2.3 in the Report) | B75: dB | C75: 21.2 | D75: 21.2
A76: Power spectral density at the EESS receiver in a 1 MHz bandwidth | B76: dBW/MHz | C76: =C73+C57-C74-C75 -> -231.9310313 | D76: =D73+D57-D74-D75 -> -232.0878792
A77: Corresponding power at the EESS receiver in the reference bandwidth for a single interferer | B77: dBW | C77: =C76+10*LOG10(C51) -> -208.9207313 | D77: -209.0775792
A78: Number of fixed indoor devices per square kilometre with uniform distribution over Europe | B78: 1/km² | C78: ='Market Size'!H22 -> 1250 | D78: ='Market Size'!H22 -> 1250
A79: Number of aggregate fixed indoor devices in the IFOV and active in the reference BW of the satellite | C79: =ROUNDUP(C78*C58,0) -> 102500 | D79: =ROUNDUP(D78*D58,0) -> 102500
A80: Corresponding received power at the EESS in the reference bandwidth within the EESS's FOV | B80: dBW | C80: =C77+10*LOG10(C79) -> -158.8134927 | D80: =D77+10*LOG10(D79) -> -158.9703406
A81: Margin with reference to ITU-R RS.2017-0 | B81: dB | C81: =C59-C60-C80 -> -22.18650733 | D81: =D59-D60-D80 -> -22.02965943

Sheet EESS (adjacent)
A1: Compatibility analysis between generic handheld/mobile indoor surveillance radar and EESS (devices are within the EESS adjecent frequency ranges)
C3: Band of EESS: 114,25-122,25 GHz
A4: Single-entry study | C4: MWI | D4: Planned EUMETSAT radiometer (ECC Report 190)
A5: Sensor type | C5: Conical scan | D5: Conical scan
A6: EESS: | B6: Units
A7: Assumed centre frequency of EESS | B7: GHz | C7: 119.125 | D7: 119.125
A8: Wavelength of EESS | B8: m | C8: =2.99792458/C7/10 -> 0.002516620844 | D8: 0.002516620844
A9: Reference bandwidth | B9: MHz | C9: 200 | D9: 200
A10: Orbit altitude | B10: km | C10: 830 | D10: 800
A11: Angle of incidence at Earth's surface (from zenith) | B11: deg | C11: 53.3 | D11: 53
A12: Elevation angle at ground | B12: deg | C12: =90-C11 -> 36.7 | D12: =90-D11 -> 37
A13: Off-nadir angle | B13: deg | C13: =(ASIN(SIN(C11*PI()/180)/(1+C10/6371)))*180/PI()+0.00000001 -> 45.18299423 | D13: =(ASIN(SIN(D11*PI()/180)/(1+D10/6371)))*180/PI()+0.00000001 -> 45.19744971
A14: Slant path distance | B14: km | C14: =6371*SIN((ASIN(((6371+C10)/6371)*SIN(C13*PI()/180))*180/PI()-C13)*PI()/180)/SIN(C13*PI()/180) -> 1268.117481 | D14: =6371*SIN((ASIN(((6371+D10)/6371)*SIN(D13*PI()/180))*180/PI()-D13)*PI()/180)/SIN(D13*PI()/180) -> 1218.99489
A15: EESS antenna gain | B15: dBi | C15: 55.5 | D15: 55
A16: Size of EESS FOV on Earth's surface | B16: km² | C16: 82 | D16: 82
A17: EESS interference criterion in the reference bandwidth (ITU-R RS.2017-0) | B17: dBW | C17: -166 | D17: -166
A18: Apportionment factor | B18: dB | C18: 15 | D18: 15
A20: Radiodetermination system (interferer):
A21: Conducted Tx power of interferer | B21: dBm | C21: 0 | D21: 0
A22: Out-of-band unwanted emissions attenuation (if EESS victim is located in an adjacent band) | B22: dB | C22: 20 | D22: 20
A23: Tx e.i.r.p. of interferer | B23: dBm | C23: =C21-C22+C28 -> -20 | D23: -20
A24: Bandwidth of interferer Tx signal | B24: GHz | C24: 1 | D24: 1
A25: Tx e.i.r.p. spectral density of interferer | B25: dBm/MHz | C25: =C23-10*LOG(C24*1000) -> -50 | D25: -50
A26: Tx e.i.r.p. spectral density of interferer | B26: dBW/MHz | C26: =C25-30 -> -80 | D26: -80
A27: Mitigation technique (e.g. duty cycle, adaptive power control) | B27: dB | C27: -7 | D27: -7
A28: Gain of the interferer antenna in direction of main radiation | B28: dBi | C28: 0 | D28: 0
A30: Free space loss between interferer and EESS | B30: dB | C30: =20*LOG10(4*PI()*C14*1000/C8) -> 196.0310313 | D30: =20*LOG10(4*PI()*D14*1000/D8) -> 195.6878792
A31: Direct e.i.r.p. spectral density at the EESS antenna | B31: dBW/MHz | C31: =C26-C30+C27 -> -283.0310313 | D31: -282.6878792
A32: Atmospheric loss (according to contribution SE24(20)063_rev1 and SE24(20)WI71#9-03) | B32: dB | C32: 3.2 | D32: 3.2
A33: Indoor-outdoor attenuation (according to clause 2.3 in the Report) | B33: dB | C33: 36.9 | D33: 36.9
A34: Power spectral density at the EESS receiver in a 1 MHz bandwidth | B34: dBW/MHz | C34: =C31+C15-C32-C33 -> -267.6310313 | D34: =D31+D15-D32-D33 -> -267.7878792
A35: Corresponding power at the EESS receiver in the reference bandwidth for a single interferer | B35: dBW | C35: =C34+10*LOG10(C9) -> -244.6207313 | D35: =D34+10*LOG10(D9) -> -244.7775792
A36: Number of interferers in EESS FOV on Earth's surface | C36: 1 | D36: 1
A37: Corresponding received power at the EESS in the reference bandwidth within the EESS's FOV | B37: dBW | C37: =C35+10*LOG10(C36) -> -244.6207313 | D37: =D35+10*LOG10(D36) -> -244.7775792
A38: Margin with reference to ITU-R RS.2017-0 | B38: dB | C38: =C17-C18-C37 -> 63.62073133 | D38: =D17-D18-D37 -> 63.77757924
C45: Band of EESS: 114,25-122,25 GHz
A46: Aggregated interference study | C46: MWI | D46: Planned EUMETSAT radiometer (ECC Report 190)
A47: Sensor type | C47: Conical scan | D47: Conical scan
A48: EESS: | B48: Units
A49: Assumed centre frequency of EESS | B49: GHz | C49: 119.125 | D49: 119.125
A50: Wavelength of EESS | B50: m | C50: =2.99792458/C49/10 -> 0.002516620844 | D50: 0.002516620844
A51: Reference bandwidth | B51: MHz | C51: 200 | D51: 200
A52: Orbit altitude | B52: km | C52: 830 | D52: 800
A53: Angle of incidence at Earth's surface (from zenith) | B53: deg | C53: 53.3 | D53: 53
A54: Elevation angle at ground | B54: deg | C54: =90-C53 -> 36.7 | D54: =90-D53 -> 37
A55: Off-nadir angle | B55: deg | C55: =(ASIN(SIN(C53*PI()/180)/(1+C52/6371)))*180/PI()+0.00000001 -> 45.18299423 | D55: =(ASIN(SIN(D53*PI()/180)/(1+D52/6371)))*180/PI()+0.00000001 -> 45.19744971
A56: Slant path distance | B56: km | C56: =6371*SIN((ASIN(((6371+C52)/6371)*SIN(C55*PI()/180))*180/PI()-C55)*PI()/180)/SIN(C55*PI()/180) -> 1268.117481 | D56: =6371*SIN((D53-D55)*PI()/180)/SIN(D55*PI()/180) -> 1218.994888
A57: EESS antenna gain | B57: dBi | C57: 55.5 | D57: 55
A58: Size of EESS FOV on Earth's surface | B58: km² | C58: 82 | D58: 82
A59: EESS interference criterion in the reference bandwidth (ITU-R RS.2017-0) | B59: dBW | C59: -166 | D59: -166
A60: Apportionment factor | B60: dB | C60: 15 | D60: 15
A62: Radiodetermination system (interferer):
A63: Conducted Tx power of interferer | B63: dBm | C63: 0 | D63: 0
A64: Out-of-band unwanted emissions attenuation (if EESS victim is located in an adjacent band) | B64: dB | C64: 20 | D64: 20
A65: Tx e.i.r.p. of interferer | B65: dBm | C65: =C63-C64+C70 -> -20 | D65: -20
A66: Bandwidth of interferer Tx signal | B66: GHz | C66: 1 | D66: 1
A67: Tx e.i.r.p. spectral density of interferer | B67: dBm/MHz | C67: =C65-10*LOG(C66*1000) -> -50 | D67: -50
A68: Tx e.i.r.p. spectral density of interferer | B68: dBW/MHz | C68: =C67-30 -> -80 | D68: -80
A69: Mitigation technique (e.g. duty cycle, adaptive power control) | B69: dB | C69: -7 | D69: -7
A70: Average gain of the interferer antenna in the direction of the victim EESS system | B70: dBi | C70: 0 | D70: 0
A72: Free space loss between interferer and EESS | B72: dB | C72: =20*LOG10(4*PI()*C56*1000/C50) -> 196.0310313 | D72: =20*LOG10(4*PI()*D56*1000/D50) -> 195.6878792
A73: Direct e.i.r.p. spectral density at the EESS antenna | B73: dBW/MHz | C73: =C68-C72+C69 -> -283.0310313 | D73: -282.6878792
A74: Atmospheric loss (according to contribution SE24(20)063_rev1 and SE24(20)WI71#9-03) | B74: dB | C74: 3.2 | D74: 3.2
A75: Indoor-outdoor attenuation (according to clause 2.3 in the Report) | B75: dB | C75: 21.1 | D75: 21.2
A76: Power spectral density at the EESS receiver in a 1 MHz bandwidth | B76: dBW/MHz | C76: =C73+C57-C74-C75 -> -251.8310313 | D76: =D73+D57-D74-D75 -> -252.0878792
A77: Corresponding power at the EESS receiver in the reference bandwidth for a single interferer | B77: dBW | C77: =C76+10*LOG10(C51) -> -228.8207313 | D77: -229.0775792
A78: Number of fixed indoor devices per square kilometre with uniform distribution over Europe | B78: 1/km² | C78: ='Market Size'!H22 -> 1250 | D78: ='Market Size'!H22 -> 1250
A79: Number of aggregate fixed indoor devices in the IFOV and active in the reference BW of the satellite | C79: =ROUNDUP(C78*C58,0) -> 102500 | D79: =ROUNDUP(D78*D58,0) -> 102500
A80: Corresponding received power at the EESS in the reference bandwidth within the EESS's FOV | B80: dBW | C80: =C77+10*LOG10(C79) -> -178.7134927 | D80: =D77+10*LOG10(D79) -> -178.9703406
A81: Margin with reference to ITU-R RS.2017-0 | B81: dB | C81: =C59-C60-C80 -> -2.286507326 | D81: =D59-D60-D80 -> -2.029659427

Sheet EESS 5.340 bands (adjacent)
A1: Compatibility analysis between generic handheld/mobile indoor surveillance radar and EESS in protected bands (protected by article 5.340 in the Radio Regulations)
C2: Protected bands assigned to EESS
C3: 114,25-116 GHz | E3: 148,5-151,5 GHz
A4: Single-entry study | C4: MWI | D4: Planned EUMETSAT radiometer (ECC Report 190) | E4: Syst. N1 (nadir) | F4: Syst. N1 (outer)
A5: Sensor type | C5: Conical scan | D5: Conical scan | E5: Nadir | F5: Nadir
A6: EESS: | B6: Units
A7: Assumed centre frequency of EESS | B7: GHz | C7: 115.125 | D7: 115.125 | E7: 150 | F7: 150
A8: Wavelength of EESS | B8: m | C8: =2.99792458/C7/10 -> 0.002604060439 | D8: 0.002604060439 | E8: 0.001998616387 | F8: 0.001998616387
A9: Reference bandwidth | B9: MHz | C9: 200 | D9: 200 | E9: 500 | F9: 500
A10: Orbit altitude | B10: km | C10: 830 | D10: 800 | E10: 705 | F10: 705
A11: Angle of incidence at Earth's surface (from zenith) | B11: deg | C11: 53.3 | D11: 53 | E11: 0 | F11: 56.9
A12: Elevation angle at ground | B12: deg | C12: =90-C11 -> 36.7 | D12: =90-D11 -> 37 | E12: 90 | F12: 33.1
A13: Off-nadir angle | B13: deg | C13: =(ASIN(SIN(C11*PI()/180)/(1+C10/6371)))*180/PI()+0.00000001 -> 45.18299423 | D13: =(ASIN(SIN(D11*PI()/180)/(1+D10/6371)))*180/PI()+0.00000001 -> 45.19744971 | E13: 1e-08 | F13: 48.96028579
A14: Slant path distance | B14: km | C14: =6371*SIN((ASIN(((6371+C10)/6371)*SIN(C13*PI()/180))*180/PI()-C13)*PI()/180)/SIN(C13*PI()/180) -> 1268.117481 | D14: =6371*SIN((ASIN(((6371+D10)/6371)*SIN(D13*PI()/180))*180/PI()-D13)*PI()/180)/SIN(D13*PI()/180) -> 1218.99489 | E14: =6371*SIN((ASIN(((6371+E10)/6371)*SIN(E13*PI()/180))*180/PI()-E13)*PI()/180)/SIN(E13*PI()/180) -> 705 | F14: 1166.758594
A15: EESS antenna gain | B15: dBi | C15: 55.5 | D15: 55 | E15: 45 | F15: 45
A16: Size of EESS FOV on Earth's surface | B16: km² | C16: 82 | D16: 82 | E16: 154 | F16: 759
A17: EESS interference criterion in the reference bandwidth (ITU-R RS.2017-0) | B17: dBW | C17: -166 | D17: -166 | E17: -159 | F17: -159
A18: Apportionment factor | B18: dB | C18: 12 | D18: 15 | E18: 15 | F18: 15
A20: Radiodetermination system (interferer):
A21: Conducted Tx power of interferer | B21: dBm | C21: 0 | D21: 0 | E21: 0 | F21: 0
A22: Out-of-band unwanted emissions attenuation (if EESS victim is located in an adjacent band) | B22: dB | C22: 20 | D22: 20 | E22: 20 | F22: 20
A23: Tx e.i.r.p. of interferer | B23: dBm | C23: =C21-C22+C28 -> -20 | D23: -20 | E23: -20 | F23: -20
A24: Bandwidth of interferer Tx signal | B24: GHz | C24: 1 | D24: 1 | E24: 1 | F24: 1
A25: Tx e.i.r.p. spectral density of interferer | B25: dBm/MHz | C25: =C23-10*LOG(C24*1000) -> -50 | D25: -50 | E25: -50 | F25: -50
A26: Tx e.i.r.p. spectral density of interferer | B26: dBW/MHz | C26: =C25-30 -> -80 | D26: -80 | E26: -80 | F26: -80
A27: Mitigation technique (e.g. duty cycle, adaptive power control) | B27: dB | C27: -7 | D27: -7 | E27: -7 | F27: -7
A28: Gain of the interferer antenna in direction of main radiation | B28: dBi | C28: 0 | D28: 0 | E28: 0 | F28: 0
A30: Free space loss between interferer and EESS | B30: dB | C30: =20*LOG10(4*PI()*C14*1000/C8) -> 195.7343659 | D30: =20*LOG10(4*PI()*D14*1000/D8) -> 195.3912138 | E30: =20*LOG10(4*PI()*E14*1000/E8) -> 192.9333907 | F30: 197.3092286
A31: Direct e.i.r.p. spectral density at the EESS antenna | B31: dBW/MHz | C31: =C26-C30+C27 -> -282.7343659 | D31: -282.3912138 | E31: -279.9333907 | F31: -284.3092286
A32: Atmospheric loss (according to contribution SE24(20)063_rev1 and SE24(20)WI71#9-03) | B32: dB | C32: 3.2 | D32: 3.2 | E32: 2 | F32: 3.8
A33: Indoor-outdoor attenuation (according to clause 2.3 in the Report) | B33: dB | C33: 36.9 | D33: 36.9 | E33: 36.9 | F33: 36.9
A34: Power spectral density at the EESS receiver in a 1 MHz bandwidth | B34: dBW/MHz | C34: =C31+C15-C32-C33 -> -267.3343659 | D34: =D31+D15-D32-D33 -> -267.4912138 | E34: =E31+E15-E32-E33 -> -273.8333907 | F34: -280.0092286
A35: Corresponding power at the EESS receiver in the reference bandwidth for a single interferer | B35: dBW | C35: =C34+10*LOG10(C9) -> -244.3240659 | D35: =D34+10*LOG10(D9) -> -244.4809138 | E35: =E34+10*LOG10(E9) -> -246.8436907 | F35: -253.0195285
A36: Number of interferers in EESS FOV on Earth's surface | C36: 1 | D36: 1 | E36: 1 | F36: 1
A37: Corresponding received power at the EESS in the reference bandwidth within the EESS's FOV | B37: dBW | C37: =C35+10*LOG10(C36) -> -244.3240659 | D37: =D35+10*LOG10(D36) -> -244.4809138 | E37: =E35+10*LOG10(E36) -> -246.8436907 | F37: -253.0195285
A38: Margin with reference to ITU-R RS.2017-0 | B38: dB | C38: =C17-C18-C37 -> 66.32406592 | D38: =D17-D18-D37 -> 63.48091383 | E38: =E17-E18-E37 -> 72.8436907 | F38: 79.01952853
C46: Protected bands assigned to EESS
C47: 114,25-116 GHz | E47: 148,5-151,5 GHz
A48: Aggregated interference study | C48: MWI | D48: Planned EUMETSAT radiometer (ECC Report 190) | E48: Syst. N1 (nadir) | F48: Syst. N1 (outer)
A49: Sensor type | C49: Conical scan | D49: Conical scan | E49: Nadir | F49: Nadir
A50: EESS: | B50: Units
A51: Assumed centre frequency of EESS | B51: GHz | C51: 115.125 | D51: 115.125 | E51: 150 | F51: 150
A52: Wavelength of EESS | B52: m | C52: =2.99792458/C51/10 -> 0.002604060439 | D52: 0.002604060439 | E52: 0.001998616387 | F52: 0.001998616387
A53: Reference bandwidth | B53: MHz | C53: 200 | D53: 200 | E53: 500 | F53: 500
A54: Orbit altitude | B54: km | C54: 830 | D54: 800 | E54: 705 | F54: 705
A55: Angle of incidence at Earth's surface (from zenith) | B55: deg | C55: 53.3 | D55: 53 | E55: 0 | F55: 56.9
A56: Elevation angle at ground | B56: deg | C56: =90-C55 -> 36.7 | D56: =90-D55 -> 37 | E56: =90-E55 -> 90 | F56: 33.1
A57: Off-nadir angle | B57: deg | C57: =(ASIN(SIN(C55*PI()/180)/(1+C54/6371)))*180/PI()+0.00000001 -> 45.18299423 | D57: 45.19744971 | E57: =(ASIN(SIN(E55*PI()/180)/(1+E54/6371)))*180/PI()+0.00000001 -> 1e-08 | F57: =(ASIN(SIN(F55*PI()/180)/(1+F54/6371)))*180/PI()+0.00000001 -> 48.96028579
A58: Slant path distance | B58: km | C58: =6371*SIN((ASIN(((6371+C54)/6371)*SIN(C57*PI()/180))*180/PI()-C57)*PI()/180)/SIN(C57*PI()/180) -> 1268.117481 | D58: 1218.99489 | E58: 705 | F58: 1166.758594
A59: EESS antenna gain | B59: dBi | C59: 55.5 | D59: 55 | E59: 45 | F59: 45
A60: Size of EESS FOV on Earth's surface | B60: km² | C60: 82 | D60: 82 | E60: 154 | F60: 759
A61: EESS interference criterion in the reference bandwidth (ITU-R RS.2017-0) | B61: dBW | C61: -166 | D61: -166 | E61: -159 | F61: -159
A62: Apportionment factor | B62: dB | C62: 12 | D62: 15 | E62: 15 | F62: 15
A64: Radiodetermination system (interferer):
A65: Conducted Tx power of interferer | B65: dBm | C65: 0 | D65: 0 | E65: 0 | F65: 0
A66: Out-of-band unwanted emissions attenuation (if EESS victim is located in an adjacent band) | B66: dB | C66: 20 | D66: 20 | E66: 20 | F66: 20
A67: Tx e.i.r.p. of interferer | B67: dBm | C67: =C65-C66+C72 -> -20 | D67: -20 | E67: -20 | F67: -20
A68: Bandwidth of interferer Tx signal | B68: GHz | C68: 1 | D68: 1 | E68: 1 | F68: 1
A69: Tx e.i.r.p. spectral density of interferer | B69: dBm/MHz | C69: =C67-10*LOG(C68*1000) -> -50 | D69: -50 | E69: -50 | F69: -50
A70: Tx e.i.r.p. spectral density of interferer | B70: dBW/MHz | C70: =C69-30 -> -80 | D70: -80 | E70: -80 | F70: -80
A71: Mitigation technique (e.g. duty cycle, adaptive power control) | B71: dB | C71: -7 | D71: -7 | E71: -7 | F71: -7
A72: Average gain of the interferer antenna in the direction of the victim EESS system | B72: dBi | C72: 0 | D72: 0 | E72: 0 | F72: 0
A74: Free space loss between interferer and EESS | B74: dB | C74: =20*LOG10(4*PI()*C58*1000/C52) -> 195.7343659 | D74: 195.3912138 | E74: 192.9333907 | F74: 197.3092286
A75: Direct e.i.r.p. spectral density at the EESS antenna | B75: dBW/MHz | C75: =C70-C74+C71 -> -282.7343659 | D75: -282.3912138 | E75: =E70-E74+E71 -> -279.9333907 | F75: -284.3092286
A76: Atmospheric loss (according to contribution SE24(20)063_rev1 and SE24(20)WI71#9-03) | B76: dB | C76: 3.2 | D76: 3.2 | E76: 2 | F76: 3.8
A77: Indoor-outdoor attenuation (according to clause 2.3 in the Report) | B77: dB | C77: =VLOOKUP(C56,'Indoor outdoor attenuation'!data_1,10) -> 25.31623389 | D77: 21.2 | E77: 21.1 | F77: 21.2
A78: Power spectral density at the EESS receiver in a 1 MHz bandwidth | B78: dBW/MHz | C78: =C75+C59-C76-C77 -> -255.7505998 | D78: -251.7912138 | E78: -258.0333907 | F78: -264.3092286
A79: Corresponding power at the EESS receiver in the reference bandwidth for a single interferer | B79: dBW | C79: =C78+10*LOG10(C53) -> -232.7402998 | D79: -228.7809138 | E79: =E78+10*LOG10(E53) -> -231.0436907 | F79: -237.3195285
A80: Number of fixed indoor devices per square kilometre with uniform distribution over Europe | B80: 1/km² | C80: ='Market Size'!H22 -> 1250 | D80: ='Market Size'!H22 -> 1250 | E80: ='Market Size'!H23 -> 1250 | F80: ='Market Size'!H23 -> 1250
A81: Number of aggregate fixed indoordevices in the IFOV and active in the reference BW of the satellite | C81: =ROUNDUP(C80*C60,0) -> 102500 | D81: =ROUNDUP(D80*D60,0) -> 102500 | E81: =ROUNDUP(E80*E60,0) -> 192500 | F81: =ROUNDUP(F80*F60,0) -> 948750
A82: Corresponding received power at the EESS in the reference bandwidth within the EESS's FOV | B82: dBW | C82: =C79+10*LOG10(C81) -> -182.6330612 | D82: =D79+10*LOG10(D81) -> -178.6736752 | E82: =E79+10*LOG10(E81) -> -178.1993834 | F82: =F79+10*LOG10(F81) -> -177.5480106
A83: Margin with reference to ITU-R RS.2017-0 | B83: dB | C83: =C61-C62-C82 -> 4.63306116 | D83: =D61-D62-D82 -> -2.326324821 | E83: =E61-E62-E82 -> 4.199383361 | F83: =F61-F62-F82 -> 3.548010638

Sheet RAS
A1: Compatibility analysis between generic handheld/mobile indoor surveillance radar and RAS
C4: with average BEL Mix (70/30) 10deg elevation | E4: no BEL, worst case (open window; comperable to outdoor + mainbeam coupling + no clutter) | G4: with average BEL Mix (70/30) 10deg elevation | I4: no BEL, worst case (open window; comperable to outdoor + mainbeam coupling + no clutter) | K4: with average BEL Mix (70/30) 10deg elevation | M4: no BEL, worst case (open window; comperable to outdoor + mainbeam coupling + no clutter)
A5: Victim RAS system | C5: Band of RAS system: 111,8-116 GHz | E5: Band of RAS system: 111,8-116 GHz | G5: Band of RAS system: 123-158,5 GHz (lower) | I5: Band of RAS system: 123-158,5 GHz (lower) | K5: Band of RAS system: 123-158,5 GHz (upper) | M5: Band of RAS system: 123-158,5 GHz (upper)
A6: Sensor type | C6: Continuum observation | D6: Spectral-line observation | E6: Continuum observation | F6: Spectral-line observation | G6: Continuum observation | H6: Spectral-line observation | I6: Continuum observation | J6: Spectral-line observation | K6: Continuum observation | L6: Spectral-line observation | M6: Continuum observation | N6: Spectral-line observation
A7: RAS: | B7: Units
A8: Assumed centre frequency of RAS | B8: GHz | C8: 113.9 | D8: 113.9 | E8: 113.9 | F8: 113.9 | G8: 126.5 | H8: 126.5 | I8: 126.5 | J8: 126.5 | K8: 137.5 | L8: 137.5 | M8: 137.5 | N8: 137.5
A9: Wavelength of RAS | B9: m | C9: =2.99792458/C8/10 -> 0.002632067234 | D9: 0.002632067234 | E9: =2.99792458/E8/10 -> 0.002632067234 | F9: 0.002632067234 | G9: =2.99792458/G8/10 -> 0.002369900854 | H9: 0.002369900854 | I9: =2.99792458/I8/10 -> 0.002369900854 | J9: 0.002369900854 | K9: 0.002180308785 | L9: 0.002180308785 | M9: 0.002180308785 | N9: 0.002180308785
A10: Bandwidth (ITU-R RA.769-2 ) | B10: MHz | C10: 8000 | D10: 1 | E10: 8000 | F10: 1 | G10: 8000 | H10: 1 | I10: 8000 | J10: 1 | K10: 8000 | L10: 1 | M10: 8000 | N10: 1
A11: Antenna gain in the direction of interferer (ITU-R RA.769-2 ) | B11: dBi | C11: 0 | D11: 0 | E11: 0 | F11: 0 | G11: 0 | H11: 0 | I11: 0 | J11: 0 | K11: 0 | L11: 0 | M11: 0 | N11: 0
A12: Feeder (insertion) loss | B12: dB | C12: 0 | D12: 0 | E12: 0 | F12: 0 | G12: 0 | H12: 0 | I12: 0 | J12: 0 | K12: 0 | L12: 0 | M12: 0 | N12: 0
A13: Threshold Interference level at receiver input (ITU-R RA.769-2 ) | B13: dBW | C13: -189 | D13: -209 | E13: -189 | F13: -209 | G13: -189.3 | H13: -209 | I13: -189.3 | J13: -209 | K13: -189.5 | L13: -209 | M13: -189.5 | N13: -209
A14: Threshold Interference level at receiver input | B14: dBm | C14: =C13+30 -> -159 | D14: =D13+30 -> -179 | E14: =E13+30 -> -159 | F14: -179 | G14: =G13+30 -> -159.3 | H14: -179 | I14: =I13+30 -> -159.3 | J14: -179 | K14: -159.5 | L14: -179 | M14: -159.5 | N14: -179
A16: Radiodetermination system (interferer):
A17: Conducted Tx power of interferer | B17: dBm | C17: 0 | D17: 0 | E17: 0 | F17: 0 | G17: 0 | H17: 0 | I17: 0 | J17: 0 | K17: 0 | L17: 0 | M17: 0 | N17: 0
A18: Out-of-band unwanted emissions attenuation (if RAS victim is located in an adjacent band) | B18: dB | C18: 20 | D18: 20 | E18: 20 | F18: 20 | G18: 0 | H18: 0 | I18: 0 | J18: 0 | K18: 0 | L18: 0 | M18: 0 | N18: 0
A19: Tx e.i.r.p. of interferer | B19: dBm | C19: =C17-C18+C25 -> -20 | D19: -20 | E19: =E17-E18+E25 -> -20 | F19: -20 | G19: =G17-G18+G25 -> 10 | H19: 10 | I19: =I17-I18+I25 -> 10 | J19: 10 | K19: 10 | L19: 10 | M19: 10 | N19: 10
A20: Bandwidth of interferer Tx signal | B20: GHz | C20: 1 | D20: 1 | E20: 1 | F20: 1 | G20: 1 | H20: 1 | I20: 1 | J20: 1 | K20: 1 | L20: 1 | M20: 1 | N20: 1
A21: Mitigation technique (e.g. duty cycle, adaptive power control) | B21: dB | C21: -7 | D21: -7 | E21: -7 | F21: -7 | G21: -7 | H21: -7 | I21: -7 | J21: -7 | K21: -7 | L21: -7 | M21: -7 | N21: -7
A22: Tx e.i.r.p. spectral density of interferer | B22: dBm/MHz | C22: =C19-10*LOG(C20*1000) -> -50 | D22: -50 | E22: =E19-10*LOG(E20*1000) -> -50 | F22: -50 | G22: -20 | H22: =H19-10*LOG(H20*1000) -> -20 | I22: -20 | J22: =J19-10*LOG(J20*1000) -> -20 | K22: -20 | L22: -20 | M22: -20 | N22: -20
A23: Tx e.i.r.p. spectral density of interferer with mitigation | B23: dBm/MHz | C23: =C19+C21-10*LOG(C20*1000) -> -57 | D23: -57 | E23: =E19+E21-10*LOG(E20*1000) -> -57 | F23: -57 | G23: -27 | H23: =H19+H21-10*LOG(H20*1000) -> -27 | I23: -27 | J23: =J19+J21-10*LOG(J20*1000) -> -27 | K23: -27 | L23: -27 | M23: -27 | N23: -27
A24: Tx e.i.r.p. of interferer with mitigation | B24: dBm | C24: =C19+C21 -> -27 | D24: -27 | E24: =E19+E21 -> -27 | F24: -27 | G24: =G19+G21 -> 3 | H24: 3 | I24: =I19+I21 -> 3 | J24: 3 | K24: 3 | L24: 3 | M24: 3 | N24: 3
A25: Gain of interferer antenna in the direction of main radiation | B25: dBi | C25: 0 | D25: 0 | E25: 0 | F25: 0 | G25: 10 | H25: 10 | I25: 10 | J25: 10 | K25: 10 | L25: 10 | M25: 10 | N25: 10
A27: Indoor-outdoor attenuation (according to clause 2.3 in the Report) | B27: dB | C27: 16 | D27: 16 | E27: 0 | F27: 0 | G27: 16 | H27: 16 | I27: 0 | J27: 0 | K27: 16 | L27: 16 | M27: 0 | N27: 0
A28: Total e.i.r.p. towards RAS | B28: dBm | C28: =C24-C27 -> -43 | D28: -43 | E28: =E24-E27 -> -27 | F28: -27 | G28: =G24-G27 -> -13 | H28: -13 | I28: =I24-I27 -> 3 | J28: 3 | K28: -13 | L28: -13 | M28: 3 | N28: 3
A29: BWCF | B29: dB | C29: =IF(C20*1000<=C10, 0, 10*LOG10(C10/C20/1000)) -> 0 | D29: -30 | E29: =IF(E20*1000<=E10, 0, 10*LOG10(E10/E20/1000)) -> 0 | F29: -30 | G29: 0 | H29: -30 | I29: =IF(I20*1000<=I10, 0, 10*LOG10(I10/I20/1000)) -> 0 | J29: -30 | K29: 0 | L29: -30 | M29: 0 | N29: -30
A32: Separation distance calculation:
A33: Minimum coupling loss (MCL) | B33: dB | C33: =C28-(C14-C11+C12)+C29 -> 116 | D33: 106 | E33: =E28-(E14-E11+E12)+E29 -> 132 | F33: 122 | G33: =G28-(G14-G11+G12)+G29 -> 146.3 | H33: 136 | I33: =I28-(I14-I11+I12)+I29 -> 162.3 | J33: 152 | K33: 146.5 | L33: 136 | M33: 162.5 | N33: 152
A34: Separation distance with FSL model | B34: km | C34: =10^((C33-32.44-20*LOG10(C8*1000))/20) -> 0.1322745449 | D34: 0.04182888383 | E34: =10^((E33-32.44-20*LOG10(E8*1000))/20) -> 0.8345959558 | F34: 0.2639224146 | G34: =10^((G33-32.44-20*LOG10(G8*1000))/20) -> 3.898607146 | H34: 1.190993728 | I34: =10^((I33-32.44-20*LOG10(I8*1000))/20) -> 24.59854812 | J34: 7.5146624 | K34: 3.670263982 | L34: 1.09571423 | M34: 23.15780016 | N34: 6.913489408
A35: Specific attenuation due to atmospheric gases (acc. to ITU-R P.835-6 winter high latitude model) | B35: dB/km | C35: 0.31 | D35: 0.31 | E35: 0.31 | F35: 0.31 | G35: 0.11 | H35: 0.11 | I35: 0.11 | J35: 0.11 | K35: 0.1 | L35: 0.1 | M35: 0.1 | N35: 0.1
A36: Separation distance adjusted for attenuation due to atmospheric gases | B36: km | C36: 0.1316684885 | D36: 0.04176654925 | E36: 0.8107878029 | F36: 0.2614694643 | G36: 3.719238213 | H36: 1.173422921 | I36: 19.27152285 | J36: 6.886369749 | K36: 3.524317369 | L36: 1.082144988 | M36: 18.67681378 | N36: 6.420855707
A37: Balance check (should be close to zero) | B37: dB | C37: =C33-20*LOG10(C36)-C36*C35-32.44-20*LOG10(C8*1000) -> -0.0009287164415 | D37: 5.981016542e-06 | E37: =E33-20*LOG10(E36)-E36*E35-32.44-20*LOG10(E8*1000) -> 3.716472072e-05 | F37: 5.044226189e-05 | G37: =G33-20*LOG10(G36)-G36*G35-32.44-20*LOG10(G8*1000) -> -6.619744084e-06 | H37: 2.162415805e-05 | I37: =I33-20*LOG10(I36)-I36*I35-32.44-20*LOG10(I8*1000) -> 1.289272603e-06 | J37: 0.0008820667184 | K37: 1.409615986e-05 | L37: 2.249358185e-05 | M37: 0.0002088849358 | N37: 2.260117569e-06

Sheet RAS 5.340 bands
A1: Compatibility analysis between generic handheld/mobile indoor surveillance radar and RAS in protected bands (protected by article 5.340 in the Radio Regulations)
C4: Protected bands assigned to RAS
C5: with average BEL Mix (70/30) 10deg elevation | E5: no BEL, worst case (open window; direct line of sight, similar to outdoor + no clutter) | G5: with average BEL Mix (70/30) 10deg elevation | I5: no BEL, worst case (open window; direct line of sight, similar to outdoor + no clutter)
A6: Victim RAS system | C6: 114,25-116 GHz | E6: 114,25-116 GHz | G6: 148,5-151,5 GHz | I6: 148,5-151,5 GHz
A7: Sensor type | C7: Continuum observation | D7: Spectral-line observation | E7: Continuum observation | F7: Spectral-line observation | G7: Continuum observation | H7: Spectral-line observation | I7: Continuum observation | J7: Spectral-line observation
A8: RAS: | B8: Units
A9: Assumed centre frequency of RAS | B9: GHz | C9: 115.125 | D9: 115.125 | E9: 115.125 | F9: 115.125 | G9: 150 | H9: 150 | I9: 150 | J9: 150
A10: Wavelength of RAS | B10: m | C10: =2.99792458/C9/10 -> 0.002604060439 | D10: 0.002604060439 | E10: =2.99792458/E9/10 -> 0.002604060439 | F10: 0.002604060439 | G10: 0.001998616387 | H10: 0.001998616387 | I10: =2.99792458/I9/10 -> 0.001998616387 | J10: 0.001998616387
A11: Bandwidth (ITU-R RA.769-2 ) | B11: MHz | C11: 8000 | D11: 1 | E11: 8000 | F11: 1 | G11: 8000 | H11: 1 | I11: 8000 | J11: 1
A12: Antenna gain in the direction of interferer (ITU-R RA.769-2 ) | B12: dBi | C12: 0 | D12: 0 | E12: 0 | F12: 0 | G12: 0 | H12: 0 | I12: 0 | J12: 0
A13: Feeder (insertion) loss | B13: dB | C13: 0 | D13: 0 | E13: 0 | F13: 0 | G13: 0 | H13: 0 | I13: 0 | J13: 0
A14: Threshold Interference level at receiver input (ITU-R RA.769-2 ) | B14: dBW | C14: -189 | D14: -209 | E14: -189 | F14: -209 | G14: -189 | H14: -209 | I14: -189 | J14: -209
A15: Threshold Interference level at receiver input | B15: dBm | C15: =C14+30 -> -159 | D15: =D14+30 -> -179 | E15: =E14+30 -> -159 | F15: -179 | G15: -159 | H15: -179 | I15: =I14+30 -> -159 | J15: -179
A17: Radiodetermination system (interferer):
A18: Conducted Tx power of interferer | B18: dBm | C18: 0 | D18: 0 | E18: 0 | F18: 0 | G18: 0 | H18: 0 | I18: 0 | J18: 0
A19: Out-of-band unwanted emissions attenuation (if RAS victim is located in an adjacent band) | B19: dB | C19: 20 | D19: 20 | E19: 20 | F19: 20 | G19: 20 | H19: 20 | I19: 20 | J19: 20
A20: Tx e.i.r.p. of interferer | B20: dBm | C20: =C18-C19+C26 -> -20 | D20: -20 | E20: =E18-E19+E26 -> -20 | F20: -20 | G20: -20 | H20: -20 | I20: =I18-I19+I26 -> -20 | J20: -20
A21: Bandwidth of interferer Tx signal | B21: GHz | C21: 1 | D21: 1 | E21: 1 | F21: 1 | G21: 1 | H21: 1 | I21: 1 | J21: 1
A22: Mitigation technique (e.g. duty cycle, adaptive power control) | B22: dB | C22: -7 | D22: -7 | E22: -7 | F22: -7 | G22: -7 | H22: -7 | I22: -7 | J22: -7
A23: Tx e.i.r.p. spectral density of interferer | B23: dBm/MHz | C23: =C20-10*LOG(C21*1000) -> -50 | D23: -50 | E23: =E20-10*LOG(E21*1000) -> -50 | F23: -50 | G23: -50 | H23: -50 | I23: =I20-10*LOG(I21*1000) -> -50 | J23: -50
A24: Tx e.i.r.p. spectral density of interferer with mitigation | B24: dBm/MHz | C24: =C20+C22-10*LOG(C21*1000) -> -57 | D24: -57 | E24: =E20+E22-10*LOG(E21*1000) -> -57 | F24: -57 | G24: -57 | H24: -57 | I24: =I20+I22-10*LOG(I21*1000) -> -57 | J24: -57
A25: Tx e.i.r.p. of interferer with mitigation | B25: dBm | C25: =C20+C22 -> -27 | D25: -27 | E25: =E20+E22 -> -27 | F25: -27 | G25: -27 | H25: -27 | I25: =I20+I22 -> -27 | J25: -27
A26: Gain of interferer antenna in the direction of main radiation | B26: dBi | C26: 0 | D26: 0 | E26: 0 | F26: 0 | G26: 0 | H26: 0 | I26: 0 | J26: 0
A28: Indoor-outdoor attenuation (according to clause 2.3 in the Report) | B28: dB | C28: 16 | D28: 16 | E28: 0 | F28: 0 | G28: 16 | H28: 16 | I28: 0 | J28: 0
A29: Total e.i.r.p. towards RAS | B29: dBm | C29: =C25-C28 -> -43 | D29: -43 | E29: =E25-E28 -> -27 | F29: -27 | G29: -43 | H29: -43 | I29: =I25-I28 -> -27 | J29: -27
A30: BWCF | B30: dB | C30: =IF(C21*1000<=C11, 0, 10*LOG10(C11/C21/1000)) -> 0 | D30: -30 | E30: =IF(E21*1000<=E11, 0, 10*LOG10(E11/E21/1000)) -> 0 | F30: -30 | G30: 0 | H30: -30 | I30: 0 | J30: -30
A33: Separation distance calculation:
A34: Minimum coupling loss (MCL) | B34: dB | C34: =C29-(C15-C12+C13)+C30 -> 116 | D34: 106 | E34: =E29-(E15-E12+E13)+E30 -> 132 | F34: 122 | G34: 116 | H34: 106 | I34: =I29-(I15-I12+I13)+I30 -> 132 | J34: 122
A35: Separation distance with FSL model | B35: km | C35: =10^((C34-32.44-20*LOG10(C9*1000))/20) -> 0.1308670633 | D35: 0.04138379907 | E35: =10^((E34-32.44-20*LOG10(E9*1000))/20) -> 0.8257153474 | F35: 0.2611141197 | G35: 0.1004404711 | H35: 0.03176206579 | I35: =10^((I34-32.44-20*LOG10(I9*1000))/20) -> 0.6337365291 | J35: 0.2004050868
A36: Specific attenuation due to atmospheric gases (acc. to ITU-R P.835-6 winter high latitude model) | B36: dB/km | C36: 0.31 | D36: 0.31 | E36: 0.31 | F36: 0.31 | G36: 0.12 | H36: 0.12 | I36: 0.12 | J36: 0.12
A37: Separation distance adjusted for attenuation due to atmospheric gases | B37: km | C37: 0.1302738983 | D37: 0.04132278223 | E37: 0.8024006642 | F37: 0.2587142558 | G37: 0.1003013165 | H37: 0.03174811522 | I37: 0.6282560178 | J37: 0.1998512382
A38: Balance check (should be close to zero) | B38: dB | C38: =C34-20*LOG10(C37)-C37*C36-32.44-20*LOG10(C9*1000) -> -0.0009259553108 | D38: 5.982623534e-06 | E38: =E34-20*LOG10(E37)-E37*E36-32.44-20*LOG10(E9*1000) -> 3.734017831e-05 | F38: -1.486035345e-06 | G38: 5.991671429e-06 | H38: 6.08866452e-06 | I38: =I34-20*LOG10(I37)-I37*I36-32.44-20*LOG10(I9*1000) -> 5.095210852e-05 | J38: 5.580412414e-05

Sheet FS
A1: Compatibility analysis between generic handheld/mobile indoor surveillance radar and RAS and fixed service (FS) systems
A4: Scenario 1: Light pole connected to a building by means of an FS link – FS Rx on building (RDI-S main beam points exactly towards FS receiver). See Report figure 3.
A6: Victim Fixed Service (FS) system | C6: Band of FS system: 111,8-114,25 GHz | E6: Band of FS system: 130-134 GHz | G6: Band of FS system: 141-148,5 GHz | I6: Band of FS system: 151,5-164 GHz
A8: Sensor type | C8: Point-to-point (PP) | D8: Point-to-point (PP) | E8: Point-to-point (PP) | F8: Point-to-point (PP) | G8: Point-to-point (PP) | H8: Point-to-point (PP) | I8: Point-to-point (PP) | J8: Point-to-point (PP)
A9: FS: | B9: Units
A10: Assumed centre frequency of FS system | B10: GHz | C10: 113.025 | D10: 113.025 | E10: 132 | F10: 132 | G10: 144.75 | H10: 144.75 | I10: 157.75 | J10: 157.75
A11: Wavelength of FS system | B11: m | C11: =2.99792458/C10/10 -> 0.002652443778 | D11: 0.002652443778 | E11: 0.002271154985 | F11: 0.002271154985 | G11: 0.002071105064 | H11: 0.002071105064 | I11: 0.001900427626 | J11: 0.001900427626
A12: Receiver noise bandwidth (ITU-R-F.758-6) | B12: MHz | C12: 1000 | D12: 1000 | E12: 1000 | F12: 1000 | G12: 1000 | H12: 1000 | I12: 1000 | J12: 1000
A13: Receiver noise figure (ITU-R-F.758-6) | B13: dB | C13: 12 | D13: 12 | E13: 14 | F13: 14 | G13: 14 | H13: 14 | I13: 14 | J13: 14
A14: Misalignment of antenna main beam towards Interferer (figure 3 in the Report) | B14: ° | C14: 0.95 | D14: 0.95 | E14: 0.95 | F14: 0.95 | G14: 0.95 | H14: 0.95 | I14: 0.95 | J14: 0.95
A15: Antenna gain in the direction of interferer (ITU-R-F.758-6) | B15: dBi | C15: 37.5 | D15: 37.5 | E15: 37.5 | F15: 37.5 | G15: 37.5 | H15: 37.5 | I15: 37.5 | J15: 37.5
A16: Feeder (insertion) loss (ITU-R-F.758-6) | B16: dB | C16: 0 | D16: 0 | E16: 0 | F16: 0 | G16: 0 | H16: 0 | I16: 0 | J16: 0
A17: I/N criterion (ITU-R F.758-6 ) | B17: dB | C17: -20 | D17: 5 | E17: -20 | F17: 5 | G17: -20 | H17: 5 | I17: -20 | J17: 5
A18: Receiver noise power density typical (ITU-R-F.758-6) | B18: dBW/MHz | C18: -132 | D18: -132 | E18: -130 | F18: -130 | G18: -130 | H18: -130 | I18: -130 | J18: -130
A19: Nominal long-term interference power density threshold (ITU-R-F.758-6) | B19: dBW/MHz | C19: =C18+C17 -> -152 | D19: -127 | E19: -150 | F19: -125 | G19: -150 | H19: -125 | I19: -150 | J19: -125
A20: Interference threshold at receiver input within IF bandwidth | B20: dBm | C20: =C19+10*LOG10(C12)+30 -> -92 | D20: -67 | E20: -90 | F20: -65 | G20: -90 | H20: -65 | I20: -90 | J20: -65
A21: (Receiver noise power density calculated over NF) | B21: dBW/MHz | C21: =-113.83+C13-30 -> -131.83 | D21: -131.83 | E21: -129.83 | F21: -129.83 | G21: -129.83 | H21: -129.83 | I21: -129.83 | J21: -129.83
A23: Radiodetermination system (interferer):
A24: Conducted Tx power of interferer | B24: dBm | C24: 0 | D24: 0 | E24: 0 | F24: 0 | G24: 0 | H24: 0 | I24: 0 | J24: 0
A25: Out-of-band unwanted emissions attenuation (if FS victim is located in an adjacent band) | B25: dB | C25: 20 | D25: 20 | E25: 20 | F25: 20 | G25: 0 | H25: 0 | I25: 20 | J25: 20
A26: Tx e.i.r.p. of interferer | B26: dBm | C26: =C24-C25+C32 -> -20 | D26: -20 | E26: -20 | F26: -20 | G26: =G24-G25+G32 -> 10 | H26: 10 | I26: -20 | J26: -20
A27: Bandwidth of interferer Tx signal | B27: GHz | C27: 1 | D27: 1 | E27: 1 | F27: 1 | G27: 1 | H27: 1 | I27: 1 | J27: 1
A28: Mitigation technique (e.g. duty cycle, adaptive power control) | B28: dB | C28: 0 | D28: 0 | E28: 0 | F28: 0 | G28: 0 | H28: 0 | I28: 0 | J28: 0
A29: Tx e.i.r.p. spectral density of interferer | B29: dBm/MHz | C29: =C26-10*LOG(C27*1000) -> -50 | D29: -50 | E29: -50 | F29: -50 | G29: -20 | H29: -20 | I29: -50 | J29: -50
A30: Tx e.i.r.p. spectral density of interferer with mitigation | B30: dBm/MHz | C30: =C26+C28-10*LOG(C27*1000) -> -50 | D30: -50 | E30: -50 | F30: -50 | G30: -20 | H30: -20 | I30: -50 | J30: -50
A31: Tx e.i.r.p. of interferer with mitigation | B31: dBm | C31: =C26+C28 -> -20 | D31: 0 | E31: -20 | F31: 0 | G31: 10 | H31: 20 | I31: -20 | J31: 0
A32: Gain of interferer antenna in the direction of main radiation | B32: dBi | C32: 0 | D32: 0 | E32: 0 | F32: 0 | G32: 10 | H32: 10 | I32: 0 | J32: 0
A34: Indoor-outdoor attenuation (according to clause 2.3 in the Report) | B34: dB | C34: 12.3 | D34: 12.3 | E34: 12.3 | F34: 12.3 | G34: 12.3 | H34: 12.3 | I34: 12.3 | J34: 12.3
A35: Total e.i.r.p. towards FS system | B35: dBm | C35: =C31-C34 -> -32.3 | D35: -12.3 | E35: -32.3 | F35: -12.3 | G35: -2.3 | H35: 7.7 | I35: -32.3 | J35: -12.3
A36: BWCF | B36: dB | C36: =IF(C27*1000<=C12, 0, 10*LOG10(C12/C27/1000)) -> 0 | D36: 0 | E36: =IF(E27*1000<=E12, 0, 10*LOG10(E12/E27/1000)) -> 0 | F36: 0 | G36: =IF(G27*1000<=G12, 0, 10*LOG10(G12/G27/1000)) -> 0 | H36: 0 | I36: =IF(I27*1000<=I12, 0, 10*LOG10(I12/I27/1000)) -> 0 | J36: 0
A39: Separation distance calculation:
A40: Minimum coupling loss (MCL) | B40: dB | C40: =C35-(C20-C15+C16)+C36 -> 97.2 | D40: 92.2 | E40: =E35-(E20-E15+E16)+E36 -> 95.2 | F40: 90.2 | G40: 125.2 | H40: 110.2 | I40: 95.2 | J40: 90.2
A41: Separation distance with FSL model | B41: km | C41: =10^((C40-32.44-20*LOG10(C10*1000))/20) -> 0.01530472337 | D41: 0.008606478423 | E41: 0.0104094089 | F41: 0.005853640796 | G41: 0.3001797749 | H41: 0.0533803513 | I41: 0.008710250238 | J41: 0.004898133661
A42: Specific attenuation due to atmospheric gases (ITU-R P.676-11 figure 5) | B42: dB/km | C42: 0.4 | D42: 0.4 | E42: 0.8 | F42: 0.8 | G42: 1 | H42: 1 | I42: 1.2 | J42: 1.2
A43: Separation distance adjusted for attenuation due to atmospheric gases | B43: km | C43: 0.01529393772 | D43: 0.008603028583 | E43: 0.01039943643 | F43: 0.005850459767 | G43: 0.2903124363 | H43: 0.05305505822 | I43: 0.008699781786 | J43: 0.004894799368
A44: Balance check (should be close to zero) | B44: dB | C44: =C40-20*LOG10(C43)-C43*C42-32.44-20*LOG10(C10*1000) -> 5.762190327e-06 | D44: 4.115855224e-05 | E44: 5.737783027e-06 | F44: 4.10655571e-05 | G44: 3.307368644e-06 | H44: 3.75849072e-05 | I44: 5.71437495e-06 | J44: 4.097618221e-05
C45: Long term interference criterion | D45: Peak power objective | E45: Long term interference criterion | F45: Peak power objective | G45: Long term interference criterion | H45: Peak power objective | I45: Long term interference criterion | J45: Peak power objective
A49: Scenario 2: Light pole connected to a building by means of an FS link – FS Rx at light pole (RDI-S main beam points exactly towards FS receiver). See Report figure 4.
A51: Victim Fixed Service (FS) system | C51: Band of FS system: 111,8-114,25 GHz | E51: Band of FS system: 130-134 GHz | G51: Band of FS system: 141-148,5 GHz | I51: Band of FS system: 151,5-164 GHz
A53: Sensor type | C53: Point-to-point (PP) | D53: Point-to-point (PP) | E53: Point-to-point (PP) | F53: Point-to-point (PP) | G53: Point-to-point (PP) | H53: Point-to-point (PP) | I53: Point-to-point (PP) | J53: Point-to-point (PP)
A54: FS: | B54: Units
A55: Assumed centre frequency of FS system | B55: GHz | C55: 113.025 | D55: 113.025 | E55: 132 | F55: 132 | G55: 144.75 | H55: 144.75 | I55: 157.75 | J55: 157.75
A56: Wavelength of FS system | B56: m | C56: =2.99792458/C55/10 -> 0.002652443778 | D56: 0.002652443778 | E56: 0.002271154985 | F56: 0.002271154985 | G56: 0.002071105064 | H56: 0.002071105064 | I56: 0.001900427626 | J56: 0.001900427626
A57: Receiver noise bandwidth (ITU-R-F.758-6) | B57: MHz | C57: 1000 | D57: 1000 | E57: 1000 | F57: 1000 | G57: 1000 | H57: 1000 | I57: 1000 | J57: 1000
A58: Receiver noise figure (ITU-R-F.758-6) | B58: dB | C58: 12 | D58: 12 | E58: 14 | F58: 14 | G58: 14 | H58: 14 | I58: 14 | J58: 14
A59: Misalignment of antenna main beam towards RDI (figure 4 in the Report) | B59: ° | C59: 4.57 | D59: 4.57 | E59: 4.57 | F59: 4.57 | G59: 4.57 | H59: 4.57 | I59: 4.57 | J59: 4.57
A60: Antenna gain in the direction of interferer (ITU-R-F.758-6) | B60: dBi | C60: 18 | D60: 18 | E60: 18 | F60: 18 | G60: 18 | H60: 18 | I60: 18 | J60: 18
A61: Feeder (insertion) loss (ITU-R-F.758-6) | B61: dB | C61: 0 | D61: 0 | E61: 0 | F61: 0 | G61: 0 | H61: 0 | I61: 0 | J61: 0
A62: I/N criterion (ITU-R F.758-6 ) | B62: dB | C62: -20 | D62: 5 | E62: -20 | F62: 5 | G62: -20 | H62: 5 | I62: -20 | J62: 5
A63: Receiver noise power density typical (ITU-R-F.758-6) | B63: dBW/MHz | C63: -132 | D63: -132 | E63: -130 | F63: -130 | G63: -130 | H63: -130 | I63: -130 | J63: -130
A64: Nominal long-term interference power density threshold (ITU-R-F.758-6) | B64: dBW/MHz | C64: =C63+C62 -> -152 | D64: -127 | E64: -150 | F64: -125 | G64: -150 | H64: -125 | I64: -150 | J64: -125
A65: Interference threshold at receiver input within IF bandwidth | B65: dBm | C65: =C64+10*LOG10(C57)+30 -> -92 | D65: -67 | E65: -90 | F65: -65 | G65: -90 | H65: -65 | I65: -90 | J65: -65
A66: (Receiver noise power density calculated over NF) | B66: dBW/MHz | C66: =-113.83+C58-30 -> -131.83 | D66: -131.83 | E66: -129.83 | F66: -129.83 | G66: -129.83 | H66: -129.83 | I66: -129.83 | J66: -129.83
A68: Radiodetermination system (interferer):
A69: Conducted Tx power of interferer | B69: dBm | C69: 0 | D69: 0 | E69: 0 | F69: 0 | G69: 0 | H69: 0 | I69: 0 | J69: 0
A70: Out-of-band unwanted emissions attenuation (if FS victim is located in an adjacent band) | B70: dB | C70: 20 | D70: 20 | E70: 20 | F70: 20 | G70: 0 | H70: 0 | I70: 20 | J70: 20
A71: Tx e.i.r.p. of interferer | B71: dBm | C71: =C69-C70+C77 -> -20 | D71: -20 | E71: -20 | F71: -20 | G71: 10 | H71: =H69-H70+H77 -> 10 | I71: =I69-I70+I77 -> -20 | J71: =J69-J70+J77 -> -20
A72: Bandwidth of interferer Tx signal | B72: GHz | C72: 1 | D72: 1 | E72: 1 | F72: 1 | G72: 1 | H72: 1 | I72: 1 | J72: 1
A73: Mitigation technique (e.g. duty cycle, adaptive power control) | B73: dB | C73: 0 | D73: 0 | E73: 0 | F73: 0 | G73: 0 | H73: 0 | I73: 0 | J73: 0
A74: Tx e.i.r.p. spectral density of interferer | B74: dBm/MHz | C74: =C71-10*LOG(C72*1000) -> -50 | D74: -50 | E74: -50 | F74: -50 | G74: -20 | H74: -20 | I74: -50 | J74: -50
A75: Tx e.i.r.p. spectral density of interferer with mitigation | B75: dBm/MHz | C75: =C71+C73-10*LOG(C72*1000) -> -50 | D75: -50 | E75: -50 | F75: -50 | G75: -20 | H75: -20 | I75: -50 | J75: -50
A76: Tx e.i.r.p. of interferer with mitigation | B76: dBm | C76: =C71+C73 -> -20 | D76: -20 | E76: -20 | F76: -20 | G76: 10 | H76: 10 | I76: -20 | J76: -20
A77: Gain of interferer antenna in the direction of main radiation | B77: dBi | C77: 0 | D77: 0 | E77: 0 | F77: 0 | G77: 10 | H77: 10 | I77: 0 | J77: 0
A79: Indoor-outdoor attenuation (according to clause 2.3 in the Report) | B79: dB | C79: 11.6 | D79: 11.6 | E79: 11.6 | F79: 11.6 | G79: 11.6 | H79: 11.6 | I79: 11.6 | J79: 11.6
A80: Total e.i.r.p. towards FS system | B80: dBm | C80: =C76-C79 -> -31.6 | D80: -31.6 | E80: -31.6 | F80: -31.6 | G80: -1.6 | H80: -1.6 | I80: -31.6 | J80: -31.6
A81: BWCF | B81: dB | C81: =IF(C72*1000<=C57, 0, 10*LOG10(C57/C72/1000)) -> 0 | D81: 0 | E81: =IF(E72*1000<=E57, 0, 10*LOG10(E57/E72/1000)) -> 0 | F81: 0 | G81: =IF(G72*1000<=G57, 0, 10*LOG10(G57/G72/1000)) -> 0 | H81: 0 | I81: =IF(I72*1000<=I57, 0, 10*LOG10(I57/I72/1000)) -> 0 | J81: 0
A84: Separation distance calculation:
A85: Minimum coupling loss (MCL) | B85: dB | C85: =C80-(C65-C60+C61)+C81 -> 78.4 | D85: 53.4 | E85: 76.4 | F85: 51.4 | G85: 106.4 | H85: 81.4 | I85: 76.4 | J85: 51.4
A86: Separation distance with FSL model | B86: km | C86: =10^((C85-32.44-20*LOG10(C55*1000))/20) -> 0.001757217357 | D86: 9.88155937e-05 | E86: 0.001195160053 | F86: 6.720878879e-05 | G86: 0.03446524957 | H86: 0.001938123411 | I86: 0.001000070535 | J86: 5.623809902e-05
A87: Specific attenuation due to atmospheric gases (ITU-R P.676-11 figure 5) | B87: dB/km | C87: 0.4 | D87: 0.4 | E87: 0.8 | F87: 0.8 | G87: 1 | H87: 1 | I87: 1.2 | J87: 1.2
A88: Separation distance adjusted for attenuation due to atmospheric gases | B88: km | C88: 0.001757073997 | D88: 9.881512294e-05 | E88: 0.001195027713 | F88: 6.720831373e-05 | G88: 0.03432927967 | H88: 0.001937689399 | I88: 0.00099993172 | J88: 5.623761269e-05
A89: Balance check (should be close to zero) | B89: dB | C89: =C85-20*LOG10(C88)-C88*C87-32.44-20*LOG10(C55*1000) -> 5.822139357e-06 | D89: 1.853838043e-06 | E89: 5.819300128e-06 | F89: 7.628601907e-06 | G89: 5.456378489e-06 | H89: 7.597473143e-06 | I89: 5.816566315e-06 | J89: 7.628374831e-06
C90: Long term interference criterion | D90: Peak power objective | E90: Long term interference criterion | F90: Peak power objective | G90: Long term interference criterion | H90: Peak power objective | I90: Long term interference criterion | J90: Peak power objective

Sheet Amateur
A1: Compatibility analysis between generic handheld/mobile indoor surveillance radar and RAS and amateur systems
A5: Victim Amateur system | C5: Band of amateur system: 122,25-123 GHz | G5: Band of amateur system: 134-141 GHz
A6: Sensor type | C6: Morse on-off keying | D6: Analogue voice | E6: Data, digital voice and multimedia | F6: Earth-moon-earth (EME) systems | G6: Morse on-off keying | H6: Analogue voice | I6: Data, digital voice and multimedia | J6: Earth-moon-earth (EME) systems
A7: Amateur system: | B7: Units
A8: Assumed centre frequency of Amateur system | B8: GHz | C8: 122.625 | D8: 122.625 | E8: 122.625 | F8: 122.625 | G8: 137.5 | H8: 137.5 | I8: 137.5 | J8: 137.5
A9: Wavelength of Amateur system | B9: m | C9: =2.99792458/C8/10 -> 0.002444790687 | D9: 0.002444790687 | E9: 0.002444790687 | F9: 0.002444790687 | G9: 0.002180308785 | H9: 0.002180308785 | I9: 0.002180308785 | J9: 0.002180308785
A10: Receiver IF bandwidth (ITU-R M.1732-2) | B10: MHz | C10: 0.0005 | D10: 0.0027 | E10: 0.0027 | F10: 0.0024 | G10: 0.0005 | H10: 0.0027 | I10: 0.0027 | J10: 0.0024
A11: Receiver noise figure (ITU-R M.1732-2) | B11: dB | C11: 3 | D11: 3 | E11: 3 | F11: 3 | G11: 3 | H11: 3 | I11: 3 | J11: 3
A12: Antenna gain in the direction of interferer (ITU-R M.1732-2) | B12: dBi | C12: 32 | D12: 32 | E12: 32 | F12: 32 | G12: 32 | H12: 32 | I12: 32 | J12: 32
A13: Feeder (insertion) loss (ITU-R M.1732-2) | B13: dB | C13: 2 | D13: 2 | E13: 2 | F13: 2 | G13: 2 | H13: 2 | I13: 2 | J13: 2
A14: I/N criterion (ITU-R M.1808) | B14: dB | C14: -10 | D14: -10 | E14: -10 | F14: -10 | G14: -10 | H14: -10 | I14: -10 | J14: -10
A15: Receiver noise power density | B15: dBW/MHz | C15: =-113.83+C11-30 -> -140.83 | D15: -140.83 | E15: -140.83 | F15: -140.83 | G15: -140.83 | H15: -140.83 | I15: -140.83 | J15: -140.83
A16: Interference power density threshold | B16: dBW/MHz | C16: =C15+C14 -> -150.83 | D16: -150.83 | E16: -150.83 | F16: -150.83 | G16: -150.83 | H16: -150.83 | I16: -150.83 | J16: -150.83
A17: Interference threshold at receiver input within IF bandwidth | B17: dBm | C17: =C16+10*LOG10(C10)+30 -> -153.8403 | D17: -146.5163624 | E17: -146.5163624 | F17: -147.0278876 | G17: -153.8403 | H17: -146.5163624 | I17: -146.5163624 | J17: -147.0278876
A19: Radiodetermination system (interferer):
A20: Conducted Tx power of interferer | B20: dBm | C20: 0 | D20: 0 | E20: 0 | F20: 0 | G20: 0 | H20: 0 | I20: 0 | J20: 0
A21: Out-of-band unwanted emissions attenuation (if Amateur victim is located in an adjacent band) | B21: dB | C21: 0 | D21: 0 | E21: 0 | F21: 0 | G21: 0 | H21: 0 | I21: 0 | J21: 0
A22: Tx e.i.r.p. of interferer | B22: dBm | C22: =C20-C21+C28 -> 10 | D22: 10 | E22: 10 | F22: 10 | G22: 10 | H22: 10 | I22: 10 | J22: 10
A23: Bandwidth of interferer Tx signal | B23: GHz | C23: 1 | D23: 1 | E23: 1 | F23: 1 | G23: 1 | H23: 1 | I23: 1 | J23: 1
A24: Mitigation technique (e.g. duty cycle, adaptive power control) | B24: dB | C24: -7 | D24: -7 | E24: -7 | F24: -7 | G24: -7 | H24: -7 | I24: -7 | J24: -7
A25: Tx e.i.r.p. spectral density of interferer | B25: dBm/MHz | C25: =C22-10*LOG(C23*1000) -> -20 | D25: -20 | E25: -20 | F25: -20 | G25: -20 | H25: -20 | I25: -20 | J25: -20
A26: Tx e.i.r.p. spectral density of interferer with mitigation | B26: dBm/MHz | C26: =C22+C24-10*LOG(C23*1000) -> -27 | D26: -27 | E26: -27 | F26: -27 | G26: -27 | H26: -27 | I26: -27 | J26: -27
A27: Tx e.i.r.p. of interferer with mitigation | B27: dBm | C27: =C22+C24 -> 3 | D27: 3 | E27: 3 | F27: 3 | G27: 3 | H27: 3 | I27: 3 | J27: 3
A28: Gain of the interferer antenna in the direction of main radiation | B28: dBi | C28: 10 | D28: 10 | E28: 10 | F28: 10 | G28: 10 | H28: 10 | I28: 10 | J28: 10
A30: Indoor-outdoor attenuation (according to clause 2.3 in the Report) | B30: dB | C30: 42 | D30: 42 | E30: 42 | F30: 42 | G30: 42 | H30: 42 | I30: 42 | J30: 42
A31: Total e.i.r.p. towards Amateur system | B31: dBm | C31: =C27-C30 -> -39 | D31: -39 | E31: -39 | F31: -39 | G31: -39 | H31: -39 | I31: -39 | J31: -39
A32: BWCF | B32: dB | C32: =IF(C23*1000<=C10, 0, 10*LOG10(C10/C23/1000)) -> -63.01029996 | D32: -55.68636236 | E32: -55.68636236 | F32: -56.19788758 | G32: -63.01029996 | H32: -55.68636236 | I32: -55.68636236 | J32: -56.19788758
A35: Separation distance calculation:
A36: Minimum coupling loss (MCL) | B36: dB | C36: =C31-(C17-C12+C13)+C32 -> 81.83 | D36: 81.83 | E36: 81.83 | F36: 81.83 | G36: 81.83 | H36: 81.83 | I36: 81.83 | J36: 81.83
A37: Separation distance with FSL model | B37: km | C37: =10^((C36-32.44-20*LOG10(C8*1000))/20) -> 0.002403925363 | D37: 0.002403925363 | E37: 0.002403925363 | F37: 0.002403925363 | G37: 0.002143864347 | H37: 0.002143864347 | I37: 0.002143864347 | J37: 0.002143864347
A38: Specific attenuation due to atmospheric gases (ITU-R P.676-11 figure 5) | B38: dB/km | C38: 0.4 | D38: 0.4 | E38: 0.4 | F38: 0.4 | G38: 0.8 | H38: 0.8 | I38: 0.8 | J38: 0.8
A39: Separation distance adjusted for attenuation due to atmospheric gases | B39: km | C39: 0.00240383472 | D39: 0.002403673261 | E39: 0.002403673261 | F39: 0.002403673261 | G39: 0.002143453583 | H39: 0.002143453602 | I39: 0.002143453602 | J39: 0.002143453602
A40: Balance check (should be close to zero) | B40: dB | C40: =C36-20*LOG10(C39)-C39*C38-32.44-20*LOG10(C8*1000) -> -0.0006340145822 | D40: -5.05228065e-05 | E40: -5.05228065e-05 | F40: -5.05228065e-05 | G40: -5.039003453e-05 | H40: -5.04656529e-05 | I40: -5.04656529e-05 | J40: -5.04656529e-05

Sheet Indoor outdoor attenuation
B3: Elevation | C3: Avg. BEL Traditional | D3: Avg. BEL Efficient | E3: 70/30 BEL omni | F3: BEL High-Gain Comp | G3: Clutter | H3: Pol. Loss | I3: Transm./Refl. Loss | J3: Inherent Dev. Shielding | K3: Total
B4: deg | C4: dB | D4: dB | F4: dB | G4: dB | H4: dB | K4: dB
B5: 0 | C5: 13.6 | D5: 26.1 | E5: =(-10*LOG10(0.7*10^(-$C5/10)+0.3*10^(-$D5/10))) -> 15.04559449 | F5: 0 | G5: 18.1 | H5: 3 | I5: 0 | J5: 0 | K5: =SUM(E5:J5) -> 36.14559449
B6: 1 | C6: 13.7 | D6: 26.2 | E6: =(-10*LOG10(0.7*10^(-$C6/10)+0.3*10^(-$D6/10))) -> 15.14559449 | F6: 0 | G6: 16.8 | H6: 3 | I6: 0 | J6: 0 | K6: =SUM(E6:J6) -> 34.94559449
B7: 2 | C7: 13.8 | D7: 26.2 | E7: 15.24321452 | F7: 0 | G7: 15.7 | H7: 3 | I7: 0 | J7: 0 | K7: 33.94321452
B8: 3 | C8: 13.9 | D8: 26.3 | E8: 15.34321452 | F8: 0 | G8: 14.8 | H8: 3 | I8: 0 | J8: 0 | K8: 33.14321452
B9: 4 | C9: 14 | D9: 26.4 | E9: 15.44321452 | F9: 0 | G9: 14 | H9: 3 | I9: 0 | J9: 0 | K9: 32.44321452
B10: 5 | C10: 14.1 | D10: 26.5 | E10: 15.54321452 | F10: 0 | G10: 13.2 | H10: 3 | I10: 0 | J10: 0 | K10: 31.74321452
B11: 6 | C11: 14.2 | D11: 26.5 | E11: 15.64078046 | F11: 0 | G11: 12.6 | H11: 3 | I11: 0 | J11: 0 | K11: 31.24078046
B12: 7 | C12: 14.3 | D12: 26.6 | E12: 15.74078046 | F12: 0 | G12: 12 | H12: 3 | I12: 0 | J12: 0 | K12: 30.74078046
B13: 8 | C13: 14.4 | D13: 26.7 | E13: 15.84078046 | F13: 0 | G13: 11.4 | H13: 3 | I13: 0 | J13: 0 | K13: 30.24078046
B14: 9 | C14: 14.5 | D14: 26.8 | E14: 15.94078046 | F14: 0 | G14: 10.9 | H14: 3 | I14: 0 | J14: 0 | K14: 29.84078046
B15: 10 | C15: 14.6 | D15: 26.8 | E15: 16.03829112 | F15: 0 | G15: 10.4 | H15: 3 | I15: 0 | J15: 0 | K15: 29.43829112
B16: 11 | C16: 14.7 | D16: 26.9 | E16: 16.13829112 | F16: 0 | G16: 10 | H16: 3 | I16: 0 | J16: 0 | K16: 29.13829112
B17: 12 | C17: 14.8 | D17: 27 | E17: 16.23829112 | F17: 0 | G17: 9.5 | H17: 3 | I17: 0 | J17: 0 | K17: 28.73829112
B18: 13 | C18: 14.9 | D18: 27.1 | E18: 16.33829112 | F18: 0 | G18: 9.1 | H18: 3 | I18: 0 | J18: 0 | K18: 28.43829112
B19: 14 | C19: 15.1 | D19: 27.2 | E19: 16.53574527 | F19: 0 | G19: 8.7 | H19: 3 | I19: 0 | J19: 0 | K19: 28.23574527
B20: 15 | C20: 15.2 | D20: 27.2 | E20: 16.63314167 | F20: 0 | G20: 8.3 | H20: 3 | I20: 0 | J20: 0 | K20: 27.93314167
B21: 16 | C21: 15.3 | D21: 27.3 | E21: 16.73314167 | F21: 0 | G21: 8 | H21: 3 | I21: 0 | J21: 0 | K21: 27.73314167
B22: 17 | C22: 15.4 | D22: 27.4 | E22: 16.83314167 | F22: 0 | G22: 7.6 | H22: 3 | I22: 0 | J22: 0 | K22: 27.43314167
B23: 18 | C23: 15.5 | D23: 27.5 | E23: 16.93314167 | F23: 0 | G23: 7.3 | H23: 3 | I23: 0 | J23: 0 | K23: 27.23314167
B24: 19 | C24: 15.6 | D24: 27.6 | E24: 17.03314167 | F24: 0 | G24: 7 | H24: 3 | I24: 0 | J24: 0 | K24: 27.03314167
B25: 20 | C25: 15.7 | D25: 27.6 | E25: 17.13047903 | F25: 0 | G25: 6.7 | H25: 3 | I25: 0 | J25: 0 | K25: 26.83047903
B26: 21 | C26: 15.8 | D26: 27.7 | E26: 17.23047903 | F26: 0 | G26: 6.4 | H26: 3 | I26: 0 | J26: 0 | K26: 26.63047903
B27: 22 | C27: 16 | D27: 27.8 | E27: 17.42775606 | F27: 0 | G27: 6.1 | H27: 3 | I27: 0 | J27: 0 | K27: 26.52775606
B28: 23 | C28: 16.1 | D28: 27.9 | E28: 17.52775606 | F28: 0 | G28: 5.9 | H28: 3 | I28: 0 | J28: 0 | K28: 26.42775606
B29: 24 | C29: 16.2 | D29: 28 | E29: 17.62775606 | F29: 0 | G29: 5.6 | H29: 3 | I29: 0 | J29: 0 | K29: 26.22775606
B30: 25 | C30: 16.3 | D30: 28.1 | E30: 17.72775606 | F30: 0 | G30: 5.4 | H30: 3 | I30: 0 | J30: 0 | K30: 26.12775606
B31: 26 | C31: 16.4 | D31: 28.1 | E31: 17.82497143 | F31: 0 | G31: 5.1 | H31: 3 | I31: 0 | J31: 0 | K31: 25.92497143
B32: 27 | C32: 16.6 | D32: 28.2 | E32: 18.02212379 | F32: 0 | G32: 4.9 | H32: 3 | I32: 0 | J32: 0 | K32: 25.92212379
B33: 28 | C33: 16.7 | D33: 28.3 | E33: 18.12212379 | F33: 0 | G33: 4.7 | H33: 3 | I33: 0 | J33: 0 | K33: 25.82212379
B34: 29 | C34: 16.8 | D34: 28.4 | E34: 18.22212379 | F34: 0 | G34: 4.5 | H34: 3 | I34: 0 | J34: 0 | K34: 25.72212379
B35: 30 | C35: 16.9 | D35: 28.5 | E35: 18.32212379 | F35: 0 | G35: 4.3 | H35: 3 | I35: 0 | J35: 0 | K35: 25.62212379
B36: 31 | C36: 17 | D36: 28.6 | E36: 18.42212379 | F36: 0 | G36: 4.1 | H36: 3 | I36: 0 | J36: 0 | K36: 25.52212379
B37: 32 | C37: 17.2 | D37: 28.6 | E37: 18.61623389 | F37: 0 | G37: 3.9 | H37: 3 | I37: 0 | J37: 0 | K37: 25.51623389
B38: 33 | C38: 17.3 | D38: 28.7 | E38: 18.71623389 | F38: 0 | G38: 3.7 | H38: 3 | I38: 0 | J38: 0 | K38: 25.41623389
B39: 34 | C39: 17.4 | D39: 28.8 | E39: 18.81623389 | F39: 0 | G39: 3.6 | H39: 3 | I39: 0 | J39: 0 | K39: 25.41623389
B40: 35 | C40: 17.5 | D40: 28.9 | E40: 18.91623389 | F40: 0 | G40: 3.4 | H40: 3 | I40: 0 | J40: 0 | K40: 25.31623389
B41: 36 | C41: 17.6 | D41: 29 | E41: 19.01623389 | F41: 0 | G41: 3.3 | H41: 3 | I41: 0 | J41: 0 | K41: 25.31623389
B42: 37 | C42: 17.8 | D42: 29.1 | E42: 19.21318879 | F42: 0 | G42: 3.1 | H42: 3 | I42: 0 | J42: 0 | K42: 25.31318879
B43: 38 | C43: 17.9 | D43: 29.2 | E43: 19.31318879 | F43: 0 | G43: 3 | H43: 3 | I43: 0 | J43: 0 | K43: 25.31318879
B44: 39 | C44: 18 | D44: 29.3 | E44: 19.41318879 | F44: 0 | G44: 2.8 | H44: 3 | I44: 0 | J44: 0 | K44: 25.21318879
B45: 40 | C45: 18.2 | D45: 29.4 | E45: 19.61007497 | F45: 0 | G45: 2.7 | H45: 3 | I45: 0 | J45: 0 | K45: 25.31007497
B46: 41 | C46: 18.3 | D46: 29.4 | E46: 19.70689092 | F46: 0 | G46: 2.6 | H46: 3 | I46: 0 | J46: 0 | K46: 25.30689092
B47: 42 | C47: 18.4 | D47: 29.5 | E47: 19.80689092 | F47: 0 | G47: 2.5 | H47: 3 | I47: 0 | J47: 0 | K47: 25.30689092
B48: 43 | C48: 18.5 | D48: 29.6 | E48: 19.90689092 | F48: 0 | G48: 2.3 | H48: 3 | I48: 0 | J48: 0 | K48: 25.20689092
B49: 44 | C49: 18.7 | D49: 29.7 | E49: 20.10363513 | F49: 0 | G49: 2.2 | H49: 3 | I49: 0 | J49: 0 | K49: 25.30363513
B50: 45 | C50: 18.8 | D50: 29.8 | E50: 20.20363513 | F50: 0 | G50: 2.1 | H50: 3 | I50: 0 | J50: 0 | K50: 25.30363513
B51: 46 | C51: 18.9 | D51: 29.9 | E51: 20.30363513 | F51: 0 | G51: 2 | H51: 3 | I51: 0 | J51: 0 | K51: 25.30363513
B52: 47 | C52: 19.1 | D52: 30 | E52: 20.50030602 | F52: 0 | G52: 1.9 | H52: 3 | I52: 0 | J52: 0 | K52: 25.40030602
B53: 48 | C53: 19.2 | D53: 30.1 | E53: 20.60030602 | F53: 0 | G53: 1.8 | H53: 3 | I53: 0 | J53: 0 | K53: 25.40030602
B54: 49 | C54: 19.3 | D54: 30.2 | E54: 20.70030602 | F54: 0 | G54: 1.7 | H54: 3 | I54: 0 | J54: 0 | K54: 25.40030602
B55: 50 | C55: 19.5 | D55: 30.3 | E55: 20.89690201 | F55: 0 | G55: 1.6 | H55: 3 | I55: 0 | J55: 0 | K55: 25.49690201
B56: 51 | C56: 19.6 | D56: 30.4 | E56: 20.99690201 | F56: 0 | G56: 1.6 | H56: 3 | I56: 0 | J56: 0 | K56: 25.59690201
B57: 52 | C57: 19.7 | D57: 30.5 | E57: 21.09690201 | F57: 0 | G57: 1.5 | H57: 3 | I57: 0 | J57: 0 | K57: 25.59690201
B58: 53 | C58: 19.9 | D58: 30.5 | E58: 21.28986273 | F58: 0 | G58: 1.4 | H58: 3 | I58: 0 | J58: 0 | K58: 25.68986273
B59: 54 | C59: 20 | D59: 30.6 | E59: 21.38986273 | F59: 0 | G59: 1.3 | H59: 3 | I59: 0 | J59: 0 | K59: 25.68986273
B60: 55 | C60: 20.1 | D60: 30.7 | E60: 21.48986273 | F60: 0 | G60: 1.3 | H60: 3 | I60: 0 | J60: 0 | K60: 25.78986273
B61: 56 | C61: 20.3 | D61: 30.8 | E61: 21.68622413 | F61: 0 | G61: 1.2 | H61: 3 | I61: 0 | J61: 0 | K61: 25.88622413
B62: 57 | C62: 20.4 | D62: 30.9 | E62: 21.78622413 | F62: 0 | G62: 1.1 | H62: 3 | I62: 0 | J62: 0 | K62: 25.88622413
B63: 58 | C63: 20.5 | D63: 31 | E63: 21.88622413 | F63: 0 | G63: 1.1 | H63: 3 | I63: 0 | J63: 0 | K63: 25.98622413
B64: 59 | C64: 20.7 | D64: 31.1 | E64: 22.08250392 | F64: 0 | G64: 1 | H64: 3 | I64: 0 | J64: 0 | K64: 26.08250392
B65: 60 | C65: 20.8 | D65: 31.2 | E65: 22.18250392 | F65: 0 | G65: 0.9 | H65: 3 | I65: 0 | J65: 0 | K65: 26.08250392
B66: 61 | C66: 21 | D66: 31.3 | E66: 22.37870035 | F66: 0 | G66: 0.9 | H66: 3 | I66: 0 | J66: 0 | K66: 26.27870035
B67: 62 | C67: 21.1 | D67: 31.4 | E67: 22.47870035 | F67: 0 | G67: 0.8 | H67: 3 | I67: 0 | J67: 0 | K67: 26.27870035
B68: 63 | C68: 21.2 | D68: 31.5 | E68: 22.57870035 | F68: 0 | G68: 0.8 | H68: 3 | I68: 0 | J68: 0 | K68: 26.37870035
B69: 64 | C69: 21.4 | D69: 31.6 | E69: 22.77481163 | F69: 0 | G69: 0.7 | H69: 3 | I69: 0 | J69: 0 | K69: 26.47481163
B70: 65 | C70: 21.5 | D70: 31.7 | E70: =(-10*LOG10(0.7*10^(-$C70/10)+0.3*10^(-$D70/10))) -> 22.87481163 | F70: 0 | G70: 0.7 | H70: 3 | I70: 0 | J70: 0 | K70: =SUM(E70:J70) -> 26.57481163
B71: 66 | C71: 21.7 | D71: 31.8 | E71: 23.07083594 | F71: 0 | G71: 0.6 | H71: 3 | I71: 0 | J71: 0 | K71: 26.67083594
B72: 67 | C72: 21.8 | D72: 31.9 | E72: 23.17083594 | F72: 0 | G72: 0.6 | H72: 3 | I72: 0 | J72: 0 | K72: 26.77083594
B73: 68 | C73: 22 | D73: 32 | E73: 23.3667714 | F73: 0 | G73: 0.5 | H73: 3 | I73: 0 | J73: 0 | K73: 26.8667714
B74: 69 | C74: 22.1 | D74: 32.1 | E74: 23.4667714 | F74: 0 | G74: 0.5 | H74: 3 | I74: 0 | J74: 0 | K74: 26.9667714
B75: 70 | C75: 22.2 | D75: 32.2 | E75: 23.5667714 | F75: 0 | G75: 0.5 | H75: 3 | I75: 0 | J75: 0 | K75: 27.0667714
B76: 71 | C76: 22.4 | D76: 32.3 | E76: 23.76261612 | F76: 0 | G76: 0.4 | H76: 3 | I76: 0 | J76: 0 | K76: 27.16261612
B77: 72 | C77: 22.5 | D77: 32.4 | E77: 23.86261612 | F77: 0 | G77: 0.4 | H77: 3 | I77: 0 | J77: 0 | K77: 27.26261612
B78: 73 | C78: 22.7 | D78: 32.5 | E78: 24.05836816 | F78: 0 | G78: 0.3 | H78: 3 | I78: 0 | J78: 0 | K78: 27.35836816
B79: 74 | C79: 22.8 | D79: 32.6 | E79: 24.15836816 | F79: 0 | G79: 0.3 | H79: 3 | I79: 0 | J79: 0 | K79: 27.45836816
B80: 75 | C80: 23 | D80: 32.7 | E80: 24.35402556 | F80: 0 | G80: 0.3 | H80: 3 | I80: 0 | J80: 0 | K80: 27.65402556
B81: 76 | C81: 23.1 | D81: 32.8 | E81: 24.45402556 | F81: 0 | G81: 0.2 | H81: 3 | I81: 0 | J81: 0 | K81: 27.65402556
B82: 77 | C82: 23.3 | D82: 32.9 | E82: 24.64958629 | F82: 0 | G82: 0.2 | H82: 3 | I82: 0 | J82: 0 | K82: 27.84958629
B83: 78 | C83: 23.4 | D83: 33 | E83: 24.74958629 | F83: 0 | G83: 0.2 | H83: 3 | I83: 0 | J83: 0 | K83: 27.94958629
B84: 79 | C84: 23.6 | D84: 33.1 | E84: 24.94504831 | F84: 0 | G84: 0.2 | H84: 3 | I84: 0 | J84: 0 | K84: 28.14504831
B85: 80 | C85: 23.7 | D85: 33.2 | E85: 25.04504831 | F85: 0 | G85: 0.1 | H85: 3 | I85: 0 | J85: 0 | K85: 28.14504831
B86: 81 | C86: 23.9 | D86: 33.3 | E86: 25.24040953 | F86: 0 | G86: 0.1 | H86: 3 | I86: 0 | J86: 0 | K86: 28.34040953
B87: 82 | C87: 24 | D87: 33.4 | E87: 25.34040953 | F87: 0 | G87: 0.1 | H87: 3 | I87: 0 | J87: 0 | K87: 28.44040953
B88: 83 | C88: 24.2 | D88: 33.5 | E88: 25.53566782 | F88: 0 | G88: 0.1 | H88: 3 | I88: 0 | J88: 0 | K88: 28.63566782
B89: 84 | C89: 24.3 | D89: 33.6 | E89: 25.63566782 | F89: 0 | G89: 0 | H89: 3 | I89: 0 | J89: 0 | K89: 28.63566782
B90: 85 | C90: 24.5 | D90: 33.7 | E90: 25.83082102 | F90: 0 | G90: 0 | H90: 3 | I90: 0 | J90: 0 | K90: 28.83082102
B91: 86 | C91: 24.6 | D91: 33.8 | E91: 25.93082102 | F91: 0 | G91: 0 | H91: 3 | I91: 0 | J91: 0 | K91: 28.93082102
B92: 87 | C92: 24.8 | D92: 33.9 | E92: 26.12586691 | F92: 0 | G92: 0 | H92: 3 | I92: 0 | J92: 0 | K92: 29.12586691
B93: 88 | C93: 24.9 | D93: 34 | E93: 26.22586691 | F93: 0 | G93: 0 | H93: 3 | I93: 0 | J93: 0 | K93: 29.22586691
B94: 89 | C94: 25.1 | D94: 34.1 | E94: 26.42080326 | F94: 0 | G94: 0 | H94: 3 | I94: 0 | J94: 0 | K94: 29.42080326
B95: 90 | C95: 25.3 | D95: 34.2 | E95: 26.61562776 | F95: 0 | G95: 0 | H95: 3 | I95: 0 | J95: 0 | K95: 29.61562776
